fUSD/lending_fUSD_20250811
["ID","MTS","AMOUNT","RATE_DAILY","PERIOD"]
[378554852,1754912618253,-216.8289913,0.00015306,2]
[378554853,1754912619743,-193.76868065,0.00015306,2]
[378554854,1754912621719,-260.04811075,0.00015306,2]
[378554855,1754912623659,-269.26910696,0.00015306,2]
[378554856,1754912625161,-236.70653123,0.00015306,2]
[378554858,1754912628679,-195.55188925,0.00015306,2]
[378554859,1754912630402,-196.33822289,0.00015306,2]
[378554860,1754912633679,-300.0,0.00015306,2]
[378554861,1754912635817,-439.42671831,0.00015306,2]
[378554862,1754912637260,-285.44203727,0.00015306,2]
[378554863,1754912639310,-258.73803656,0.00015306,2]
[378554864,1754912641462,-300.00334614,0.00015306,2]
[378554865,1754912643431,-294.08478588,0.00015306,2]
[378554867,1754912657529,-1092.15465697,0.00015306,2]
[378554869,1754912658750,-472.8577481,0.00015306,2]
[378554871,1754912660830,-202.26460381,0.00015306,2]
[378554872,1754912662963,-180.89799403,0.00015306,2]
[378554873,1754912666060,-305.03863114,0.00015306,2]
[378554874,1754912668075,-246.40930924,0.00015306,2]
[378554875,1754912669524,-273.4139956,0.00015306,2]
[378554876,1754912672784,-154.43005064,0.00015306,2]
[378554877,1754912674273,-300.0,0.00015306,2]
[378554880,1754912676057,-269.9529417,0.00015306,2]
[378554881,1754912677031,155.99,0.00015253,2]
[378554882,1754912677119,64.734468,0.00015261,2]
[378554883,1754912677146,91.255532,0.00015261,2]
[378554884,1754912677257,155.99,0.00015269,2]
[378554885,1754912677608,155.99,0.00015277,2]
[378554886,1754912677763,-438.34758652,0.00015306,2]
[378554887,1754912677823,155.99,0.00015285,2]
[378554888,1754912678046,155.99,0.00015293,2]
[378554889,1754912678251,155.99,0.00015301,2]
[378554890,1754912682175,-300.0,0.00015306,2]
[378554891,1754912683686,-163.97124584,0.00015306,2]
[378554892,1754912685488,737.04736386,0.00015228,2]
[378554893,1754912686611,-174.01568175,0.00015228,2]
[378554896,1754912694814,314.29,0.00013699,2]
[378554897,1754912700091,7964.26743134,0.00014963,2]
[378554898,1754912700113,13037.71256866,0.00014963,2]
[378554899,1754912702368,-300.0,0.00015228,2]
[378554900,1754912705428,-549.17458815,0.00015228,2]
[378554901,1754912707207,-205.80443221,0.00015228,2]
[378554904,1754912709840,-294.84551715,0.00015228,2]
[378554905,1754912711341,-274.28105859,0.00015228,2]
[378554906,1754912712730,-200.14253122,0.00015228,2]
[378554907,1754912715901,-245.93439671,0.00015228,2]
[378554908,1754912721293,-173.43133591,0.00015228,2]
[378554910,1754912725003,-247.90424507,0.00015228,2]
[378554911,1754912727569,-319.35303106,0.00015228,2]
[378554912,1754912731212,-155.18227058,0.00015228,2]
[378554913,1754912732803,-392.83234382,0.00015228,2]
[378554914,1754912736661,-276.95469749,0.00015228,2]
[378554915,1754912739259,-300.80402277,0.00015228,2]
[378554918,1754912741860,-215.74901124,0.00015228,2]
[378554919,1754912743220,-165.13596661,0.00015228,2]
[378554920,1754912745450,-29.87504281,0.00015228,2]
[378554921,1754912745472,-355.73044184,0.00015306,2]
[378554922,1754912749591,-263.20154864,0.00015306,2]
[378554924,1754912751841,-303.32509461,0.00015306,2]
[378554926,1754912754346,-300.0,0.00015306,2]
[378554927,1754912755937,-30.71833028,0.00015306,2]
[378554928,1754912755959,-122.3814648,0.00015309,2]
[378554930,1754912757969,-181.81063905,0.00015205,2]
[378554931,1754912760662,-20.55154845,0.00015205,2]
[378554932,1754912760692,-33.6085352,0.00015309,2]
[378554933,1754912760728,-137.54910897,0.00015317,2]
[378554934,1754912763894,-18.44089103,0.00015317,2]
[378554935,1754912764581,-155.99,0.00015325,2]
[378554936,1754912764621,-122.14656512,0.00015333,2]
[378554937,1754912765766,-240.232003,0.00015014,2]
[378554938,1754912768710,-135.277997,0.00015014,2]
[378554939,1754912768733,-80.4080074,0.00015128,2]
[378554940,1754912770782,-284.19684316,0.00015128,2]
[378554941,1754912772535,-348.2360044,0.00015128,2]
[378554942,1754912773459,1962.28743134,0.00015,2]
[378554943,1754912773479,15000.0,0.00015,2]
[378554944,1754912773500,3037.71256866,0.00015,2]
[378554946,1754912774483,-282.47745944,0.00015128,2]
[378554948,1754912776117,-33.84343488,0.00015333,2]
[378554949,1754912776143,-155.99,0.00015341,2]
[378554950,1754912776168,-54.44122515,0.00015349,2]
[378554951,1754912779483,-101.54877485,0.00015349,2]
[378554952,1754912779506,-155.99,0.00015358,2]
[378554953,1754912779529,-32.55372435,0.00015366,2]
[378554954,1754912781557,-123.43627565,0.00015366,2]
[378554955,1754912781580,-155.99,0.00015374,2]
[378554956,1754912781603,-14.8892772,0.00015382,2]
[378554957,1754912783061,-141.1007228,0.00015382,2]
[378554958,1754912783084,-46.8992772,0.00015385,2]
[378554959,1754912785713,-212.93301731,0.00015385,2]
[378554960,1754912788193,-158.90870549,0.00015385,2]
[378554961,1754912788217,-83.62208822,0.0001539,2]
[378554962,1754912789671,-72.36791178,0.0001539,2]
[378554963,1754912789695,-155.99,0.00015398,2]
[378554964,1754912789718,-515.37676491,0.00015405,2]
[378554966,1754912796198,-208.33180686,0.00015308,2]
[378554967,1754912797274,-281.65450767,0.00015308,2]
[378554969,1754912799201,-323.64554297,0.00015308,2]
[378554970,1754912801375,-425.9713995,0.00015308,2]
[378554971,1754912805874,501.0,0.00014795,2]
[378554973,1754912818030,501.97,0.00024,120]
[378554974,1754912822177,-197.74952998,0.00015405,2]
[378554977,1754912830683,-240.13844,0.00015405,2]
[378554979,1754912832973,-151.0,0.00015405,2]
[378554980,1754912834512,-95.73526511,0.00015405,2]
[378554981,1754912834537,-114.60100707,0.00015406,2]
[378554982,1754912836609,-41.38899293,0.00015406,2]
[378554984,1754912845431,765.0,0.00015,2]
[378554987,1754912878092,-168.47256707,0.00015447,2]
[378554988,1754912880323,-176.94526593,0.00015447,2]
[378554989,1754912883620,-258.34941641,0.00015447,2]
[378554991,1754912885613,-139.96742659,0.00015447,2]
[378555006,1754912930791,170.0,0.00015379,7]
[378555012,1754912999759,-200.0,0.00015435,2]
[378555014,1754912999783,-39.66372782,0.00015435,2]
[378555015,1754913001142,-218.01625003,0.00015435,2]
[378555016,1754913004458,-236.57901805,0.00015435,2]
[378555017,1754913005472,-327.84657725,0.00015435,2]
[378555018,1754913007451,-300.0,0.00015435,2]
[378555019,1754913009472,-319.07156554,0.00015435,2]
[378555021,1754913031138,-179.60286131,0.00015435,2]
[378555022,1754913031164,-200.0,0.00015525,2]
[378555023,1754913031192,-345.39713869,0.00015525,2]
[378555032,1754913031455,-922.14007977,0.00015525,2]
[378555033,1754913031465,-286.0,0.00015533,2]
[378555034,1754913031475,-300.0,0.00015533,2]
[378555035,1754913031484,-1200.0,0.00015533,2]
[378555036,1754913031494,-300.0,0.00015533,2]
[378555037,1754913031504,-500.0,0.00015533,2]
[378555038,1754913031514,-407.00547614,0.00015533,2]
[378555039,1754913031523,-10292.39569185,0.00015534,2]
[378555040,1754913031566,-13607.60430815,0.00015534,2]
[378555041,1754913031577,-1000.0,0.0001557,2]
[378555042,1754913031587,-854.43,0.000156,2]
[378555043,1754913031597,-200.0,0.00015601,2]
[378555044,1754913031608,-217.39,0.00015646,2]
[378555045,1754913031618,-555.81,0.00015703,2]
[378555046,1754913031627,-283.83395967,0.00015902,2]
[378555047,1754913031639,-421.55562815,0.00015902,2]
[378555048,1754913031648,-42.53950941,0.00016075,2]
[378555049,1754913031822,-1134.70376479,0.00016075,2]
[378555050,1754913031834,-1677.4804957,0.00016075,2]
[378555051,1754913031845,-546.70376497,0.00016075,2]
[378555060,1754913032040,-2350.350242,0.00016075,2]
[378555063,1754913032067,-136.22222313,0.00016075,2]
[378555064,1754913032077,-345.0,0.000161,2]
[378555066,1754913032087,-427.83,0.000161,2]
[378555068,1754913032096,-321.73,0.00016172,2]
[378555070,1754913032106,-935.92,0.00016196,2]
[378555073,1754913032116,-935.14,0.00016196,2]
[378555075,1754913032125,-534.0,0.00016211,2]
[378555077,1754913032135,-600.0,0.00016212,2]
[378555079,1754913032144,-600.0,0.00016212,2]
[378555081,1754913032153,-600.0,0.00016212,2]
[378555083,1754913032162,-600.0,0.00016212,2]
[378555085,1754913032172,-600.0,0.00016212,2]
[378555087,1754913032182,-536.52,0.00016212,2]
[378555089,1754913032194,-217.39,0.00016233,2]
[378555091,1754913032204,-300.73,0.00016356,2]
[378555093,1754913032214,-5412.38190576,0.00016364,2]
[378555095,1754913032228,-475.61809424,0.00016364,2]
[378555097,1754913032238,-2805.42750179,0.00016411,2]
[378555099,1754913032249,-3082.57249821,0.00016411,2]
[378555101,1754913032258,-531.34014448,0.00016418,2]
[378555103,1754913032267,-5888.0,0.00016418,2]
[378555105,1754913032278,-777.23,0.00016493,2]
[378555107,1754913032288,-1602.7043,0.00016516,2]
[378555109,1754913032299,-2267.41341884,0.00016523,2]
[378555111,1754913032310,-525.43149431,0.00016523,2]
[378555113,1754913032320,-155.03731434,0.00016524,2]
[378555115,1754913032329,-162.89464287,0.00016524,2]
[378555117,1754913032339,-2619.6566,0.00016524,2]
[378555119,1754913032348,-1000.0,0.00016524,2]
[378555121,1754913032358,-1000.0,0.00016524,2]
[378555123,1754913032368,-411.41335624,0.00016526,2]
[378555125,1754913032377,-2267.41341875,0.00016584,2]
[378555127,1754913032387,-150.0,0.00016606,2]
[378555129,1754913032396,-1582.81564178,0.00016607,2]
[378555131,1754913032405,-2017.31405324,0.00016608,2]
[378555133,1754913032416,-2451.81246471,0.00016609,2]
[378555135,1754913032425,-2886.31087618,0.00016609,2]
[378555137,1754913032435,-3320.80928765,0.0001661,2]
[378555139,1754913032444,-3755.30769912,0.00016611,2]
[378555141,1754913032453,-4189.80611058,0.00016612,2]
[378555143,1754913032462,-4624.30452205,0.00016612,2]
[378555145,1754913032472,-5058.80293352,0.00016613,2]
[378555147,1754913032482,-1163.3,0.00016613,2]
[378555149,1754913032491,-666.15509979,0.00016616,2]
[378555151,1754913032500,-400.0,0.00016622,2]
[378555153,1754913032510,-400.0,0.00016622,2]
[378555155,1754913032519,-237.25533919,0.00016622,2]
[378555156,1754913032531,-162.74466081,0.00016622,2]
[378555157,1754913032540,-315.33633912,0.00016622,2]
[378555158,1754913032565,-84.66366088,0.00016622,2]
[378555159,1754913032574,-254.35194343,0.00016622,2]
[378555160,1754913032594,-145.64805657,0.00016622,2]
[378555161,1754913032605,-400.0,0.00016622,2]
[378555162,1754913032614,-914.13,0.00016622,2]
[378555163,1754913032624,-400.0,0.00016622,2]
[378555164,1754913032633,-400.0,0.00016622,2]
[378555165,1754913032643,-400.0,0.00016622,2]
[378555166,1754913032652,-1959.51,0.00016622,2]
[378555167,1754913032661,-400.0,0.00016623,2]
[378555168,1754913032671,-400.0,0.00016623,2]
[378555169,1754913032681,-486.72,0.00016623,2]
[378555170,1754913032690,-400.0,0.00016623,2]
[378555171,1754913032699,-400.0,0.00016623,2]
[378555172,1754913032709,-400.0,0.00016623,2]
[378555173,1754913032719,-400.0,0.00016623,2]
[378555174,1754913032728,-400.0,0.00016623,2]
[378555175,1754913032738,-500.0,0.00016623,2]
[378555176,1754913032748,-400.0,0.00016623,2]
[378555177,1754913032757,-400.0,0.00016623,2]
[378555178,1754913032767,-400.0,0.00016623,2]
[378555179,1754913032776,-406.37477908,0.00016623,2]
[378555180,1754913032786,-400.0,0.00016623,2]
[378555181,1754913032796,-400.0,0.00016623,2]
[378555182,1754913032807,-400.0,0.00016623,2]
[378555183,1754913032816,-400.0,0.00016623,2]
[378555184,1754913032826,-400.0,0.00016623,2]
[378555185,1754913032835,-66.68416435,0.00016623,2]
[378555186,1754913032851,-333.31583565,0.00016623,2]
[378555187,1754913032861,-400.0,0.00016623,2]
[378555188,1754913032870,-400.0,0.00016623,2]
[378555189,1754913032879,-400.0,0.00016623,2]
[378555190,1754913032889,-400.0,0.00016623,2]
[378555191,1754913032898,-885.25,0.00016623,2]
[378555192,1754913032907,-400.0,0.00016623,2]
[378555193,1754913032917,-400.0,0.00016623,2]
[378555194,1754913032926,-400.0,0.00016623,2]
[378555195,1754913032935,-400.0,0.00016623,2]
[378555196,1754913032944,-782.6,0.00016623,2]
[378555197,1754913032953,-400.0,0.00016623,2]
[378555198,1754913032963,-400.0,0.00016623,2]
[378555199,1754913032972,-400.0,0.00016623,2]
[378555200,1754913032981,-400.0,0.00016623,2]
[378555201,1754913032990,-400.0,0.00016623,2]
[378555202,1754913032999,-400.0,0.00016623,2]
[378555203,1754913033009,-400.56256303,0.00016623,2]
[378555204,1754913033019,-400.0,0.00016623,2]
[378555205,1754913033029,-400.0,0.00016623,2]
[378555206,1754913033038,-400.0,0.00016623,2]
[378555207,1754913033048,-400.0,0.00016623,2]
[378555208,1754913033061,-400.0,0.00016623,2]
[378555209,1754913033071,-400.0,0.00016623,2]
[378555210,1754913033081,-539.02,0.00016623,2]
[378555211,1754913033091,-516.56,0.00016623,2]
[378555212,1754913033100,-400.0,0.00016623,2]
[378555213,1754913033110,-449.70221992,0.00016623,2]
[378555214,1754913033120,-400.0,0.00016623,2]
[378555215,1754913033129,-400.0,0.00016623,2]
[378555216,1754913033139,-682.78,0.00016623,2]
[378555217,1754913033149,-400.0,0.00016623,2]
[378555218,1754913033159,-767.57,0.00016623,2]
[378555219,1754913033168,-400.0,0.00016623,2]
[378555220,1754913033177,-400.0,0.00016623,2]
[378555221,1754913033188,-400.0,0.00016623,2]
[378555222,1754913033198,-400.0,0.00016623,2]
[378555223,1754913033208,-250.0,0.00016623,2]
[378555224,1754913033218,-400.0,0.00016623,2]
[378555225,1754913033231,-400.0,0.00016623,2]
[378555226,1754913033242,-400.0,0.00016623,2]
[378555227,1754913033252,-400.0,0.00016623,2]
[378555228,1754913033263,-402.71635232,0.00016623,2]
[378555229,1754913033274,-400.0,0.00016623,2]
[378555230,1754913033284,-400.0,0.00016623,2]
[378555231,1754913033294,-400.0,0.00016623,2]
[378555232,1754913033308,-400.0,0.00016623,2]
[378555233,1754913033318,-1077.9,0.00016623,2]
[378555234,1754913033328,-1847.71,0.00016623,2]
[378555235,1754913033340,-750.51302908,0.00016623,2]
[378555271,1754913037853,-1025.43,0.00016622,2]
[378555273,1754913037862,-563.57,0.00016622,2]
[378555275,1754913037872,-822.42697092,0.00016623,2]
[378555277,1754913037881,-404.58190652,0.00016623,2]
[378555279,1754913037892,-224.59809348,0.00016623,2]
[378555281,1754913037901,-400.0,0.00016623,2]
[378555283,1754913037911,-526.98066945,0.00016623,2]
[378555285,1754913037920,-400.0,0.00016623,2]
[378555287,1754913037929,-400.0,0.00016623,2]
[378555289,1754913037939,-400.0,0.00016623,2]
[378555291,1754913037948,-400.0,0.00016623,2]
[378555293,1754913037957,-400.0,0.00016623,2]
[378555295,1754913037966,-717.66,0.00016623,2]
[378555297,1754913037976,-400.0,0.00016623,2]
[378555299,1754913037990,-486.47,0.00016623,2]
[378555301,1754913037999,-400.0,0.00016623,2]
[378555303,1754913038009,-400.0,0.00016623,2]
[378555305,1754913038018,-400.0,0.00016623,2]
[378555307,1754913038028,-1360.56,0.00016623,2]
[378555309,1754913038037,-1924.52,0.00016623,2]
[378555311,1754913038047,-862.74,0.00016623,2]
[378555313,1754913038056,-400.0,0.00016623,2]
[378555315,1754913038066,-2103.16,0.00016623,2]
[378555317,1754913038076,-650.99,0.00016623,2]
[378555319,1754913038085,-400.0,0.00016623,2]
[378555321,1754913038095,-400.0,0.00016623,2]
[378555323,1754913038104,-468.97,0.00016623,2]
[378555325,1754913038115,-400.0,0.00016623,2]
[378555328,1754913038125,-400.0,0.00016623,2]
[378555329,1754913038137,-535.63,0.00016623,2]
[378555331,1754913038146,-450.63,0.00016623,2]
[378555333,1754913038158,-551.93,0.00016623,2]
[378555335,1754913038168,-400.0,0.00016623,2]
[378555337,1754913038177,-400.0,0.00016623,2]
[378555339,1754913038187,-400.0,0.00016623,2]
[378555342,1754913038196,-400.0,0.00016623,2]
[378555344,1754913038205,-400.0,0.00016623,2]
[378555346,1754913038215,-1110.75,0.00016623,2]
[378555348,1754913038228,-616.85,0.00016623,2]
[378555349,1754913038237,-400.0,0.00016623,2]
[378555352,1754913038248,-3665.68,0.00016623,2]
[378555354,1754913038257,-400.0,0.00016623,2]
[378555355,1754913038267,-400.0,0.00016623,2]
[378555357,1754913038277,-400.0,0.00016623,2]
[378555359,1754913038287,-538.73,0.00016623,2]
[378555361,1754913038296,-1238.34,0.00016623,2]
[378555363,1754913038307,-400.0,0.00016623,2]
[378555365,1754913038316,-400.0,0.00016623,2]
[378555367,1754913038326,-400.0,0.00016623,2]
[378555369,1754913038335,-400.0,0.00016623,2]
[378555371,1754913038344,-1103.47,0.00016623,2]
[378555373,1754913038354,-1832.23,0.00016623,2]
[378555375,1754913038365,-400.0,0.00016623,2]
[378555377,1754913038374,-400.0,0.00016623,2]
[378555379,1754913038383,-400.0,0.00016623,2]
[378555381,1754913038392,-400.0,0.00016623,2]
[378555383,1754913038401,-400.0,0.00016623,2]
[378555385,1754913038410,-400.0,0.00016623,2]
[378555387,1754913038419,-667.01,0.00016623,2]
[378555389,1754913038428,-400.0,0.00016623,2]
[378555391,1754913038438,-400.0,0.00016623,2]
[378555393,1754913038447,-400.0,0.00016623,2]
[378555395,1754913038456,-400.0,0.00016623,2]
[378555397,1754913038466,-3599.22,0.00016623,2]
[378555399,1754913038475,-478.41498068,0.00016623,2]
[378555401,1754913038484,-400.0,0.00016623,2]
[378555404,1754913038494,-400.0,0.00016623,2]
[378555405,1754913038503,-400.0,0.00016623,2]
[378555407,1754913038512,-3965.48,0.00016623,2]
[378555409,1754913038521,-400.0,0.00016623,2]
[378555411,1754913038531,-400.0,0.00016623,2]
[378555413,1754913038540,-763.33,0.00016623,2]
[378555415,1754913038550,-400.0,0.00016623,2]
[378555417,1754913038559,-400.0,0.00016623,2]
[378555419,1754913038568,-400.0,0.00016623,2]
[378555421,1754913038578,-2315.63,0.00016623,2]
[378555423,1754913038587,-513.17,0.00016623,2]
[378555425,1754913038596,-1032.43,0.00016623,2]
[378555427,1754913038605,-2928.22,0.00016623,2]
[378555429,1754913038614,-625.35,0.00016623,2]
[378555431,1754913038623,-400.0,0.00016623,2]
[378555433,1754913038633,-1177.84123544,0.00016623,2]
[378555437,1754913038658,-773.93876456,0.00016623,2]
[378555439,1754913038667,-400.0,0.00016623,2]
[378555441,1754913038676,-87.77123544,0.00016623,2]
[378555444,1754913038696,-250.12254611,0.00016623,2]
[378555447,1754913038708,-479.0485,0.00016623,2]
[378555449,1754913038720,-402.12771845,0.00016623,2]
[378555451,1754913038729,-400.0,0.00016623,2]
[378555453,1754913038738,-246.62845522,0.00016623,2]
[378555487,1754913039049,-153.37154478,0.00016623,2]
[378555489,1754913039060,-400.0,0.00016623,2]
[378555491,1754913039069,-400.0,0.00016623,2]
[378555493,1754913039079,-400.0,0.00016623,2]
[378555495,1754913039089,-1039.56,0.00016623,2]
[378555497,1754913039098,-400.0,0.00016623,2]
[378555499,1754913039107,-400.0,0.00016623,2]
[378555501,1754913039116,-304.46845522,0.00016623,2]
[378555555,1754913039603,-999.50154478,0.00016623,2]
[378555557,1754913039614,-400.0,0.00016623,2]
[378555560,1754913039624,-400.0,0.00016623,2]
[378555562,1754913039633,-400.0,0.00016623,2]
[378555564,1754913039643,-617.95,0.00016623,2]
[378555566,1754913039652,-602.38,0.00016623,2]
[378555567,1754913039662,-400.0,0.00016623,2]
[378555569,1754913039671,-400.0,0.00016623,2]
[378555572,1754913039681,-400.0,0.00016623,2]
[378555574,1754913039690,-401.58,0.00016623,2]
[378555576,1754913039699,-5755.72,0.00016623,2]
[378555578,1754913039709,-400.0,0.00016623,2]
[378555580,1754913039718,-783.72,0.00016623,2]
[378555582,1754913039727,-400.0,0.00016623,2]
[378555584,1754913039736,-400.0,0.00016623,2]
[378555586,1754913039746,-400.0,0.00016623,2]
[378555588,1754913039755,-400.0,0.00016623,2]
[378555590,1754913039763,-400.0,0.00016623,2]
[378555591,1754913039773,-400.0,0.00016623,2]
[378555593,1754913039782,-400.0,0.00016623,2]
[378555596,1754913039791,-400.0,0.00016623,2]
[378555598,1754913039800,-1955.89,0.00016623,2]
[378555600,1754913039812,-1996.46,0.00016623,2]
[378555602,1754913039822,-400.0,0.00016623,2]
[378555604,1754913039831,-479.01,0.00016623,2]
[378555606,1754913039841,-1475.85,0.00016623,2]
[378555608,1754913039850,-447.09,0.00016623,2]
[378555610,1754913039859,-400.0,0.00016623,2]
[378555612,1754913039869,-470.42702443,0.00016623,2]
[378555614,1754913039879,-400.0,0.00016623,2]
[378555616,1754913039888,-165.702871,0.00016623,2]
[378555618,1754913039898,-578.81,0.00016623,2]
[378555620,1754913039907,-207.41319656,0.00016623,2]
[378555622,1754913039917,-400.0,0.00016623,2]
[378555624,1754913039927,-791.98,0.00016623,2]
[378555626,1754913039936,-2675.98,0.00016623,2]
[378555628,1754913039945,-1152.081676,0.00016623,2]
[378555630,1754913039954,-400.0,0.00016623,2]
[378555632,1754913039963,-497.831891,0.00016623,2]
[378555634,1754913039972,-400.0,0.00016623,2]
[378555636,1754913039981,-400.0,0.00016623,2]
[378555638,1754913039991,-400.0,0.00016623,2]
[378555640,1754913040000,-400.0,0.00016623,2]
[378555642,1754913040009,-400.0,0.00016623,2]
[378555644,1754913040019,-400.0,0.00016623,2]
[378555646,1754913040028,-470.78,0.00016623,2]
[378555648,1754913040037,-696.81,0.00016623,2]
[378555650,1754913040046,-400.0,0.00016623,2]
[378555651,1754913040055,-6727.5,0.00016623,2]
[378555653,1754913040066,-1016.93,0.00016623,2]
[378555656,1754913040076,-400.0,0.00016623,2]
[378555658,1754913040085,-400.0,0.00016623,2]
[378555660,1754913040094,-400.0,0.00016623,2]
[378555661,1754913040104,-400.0,0.00016623,2]
[378555663,1754913040113,-529.01,0.00016623,2]
[378555665,1754913040122,-610.99,0.00016623,2]
[378555668,1754913040132,-400.0,0.00016623,2]
[378555670,1754913040141,-400.0,0.00016623,2]
[378555672,1754913040150,-400.0,0.00016623,2]
[378555674,1754913040160,-400.0,0.00016623,2]
[378555676,1754913040169,-5623.33,0.00016623,2]
[378555678,1754913040178,-1089.579135,0.00016623,2]
[378555680,1754913040187,-400.0,0.00016623,2]
[378555682,1754913040196,-546.53,0.00016623,2]
[378555684,1754913040206,-400.0,0.00016623,2]
[378555685,1754913040215,-400.0,0.00016623,2]
[378555687,1754913040224,-400.0,0.00016623,2]
[378555690,1754913040237,-400.0,0.00016623,2]
[378555691,1754913040247,-562.74,0.00016623,2]
[378555693,1754913040257,-400.0,0.00016623,2]
[378555695,1754913040266,-400.0,0.00016623,2]
[378555697,1754913040276,-400.0,0.00016623,2]
[378555699,1754913040286,-400.0,0.00016623,2]
[378555701,1754913040295,-400.0,0.00016623,2]
[378555703,1754913040305,-895.23,0.00016623,2]
[378555706,1754913040318,-790.77,0.00016623,2]
[378555708,1754913040327,-2711.02,0.00016623,2]
[378555709,1754913040336,-400.0,0.00016623,2]
[378555711,1754913040346,-151.129737,0.00016623,2]
[378555713,1754913040355,-487.57,0.00016623,2]
[378555715,1754913040364,-400.0,0.00016623,2]
[378555717,1754913040374,-400.0,0.00016623,2]
[378555719,1754913040383,-1287.58,0.00016623,2]
[378555722,1754913040393,-400.0,0.00016623,2]
[378555724,1754913040402,-532.2,0.00016623,2]
[378555725,1754913040411,-709.95,0.00016623,2]
[378555727,1754913040420,-1341.71,0.00016623,2]
[378555730,1754913040429,-601.73,0.00016623,2]
[378555731,1754913040439,-400.0,0.00016623,2]
[378555733,1754913040448,-400.0,0.00016623,2]
[378555735,1754913040457,-7405.77,0.00016623,2]
[378555737,1754913040466,-400.0,0.00016623,2]
[378555740,1754913040475,-450.50761147,0.00016623,2]
[378555742,1754913040485,-400.0,0.00016624,2]
[378555744,1754913040494,-411.4,0.00016624,2]
[378555745,1754913040506,-1472.06,0.00016624,2]
[378555747,1754913040516,-604.88,0.00016624,2]
[378555749,1754913040525,-505.49,0.00016624,2]
[378555751,1754913040535,-879.62,0.00016624,2]
[378555753,1754913040544,-400.0,0.00016624,2]
[378555755,1754913040554,-400.0,0.00016624,2]
[378555757,1754913040567,-400.0,0.00016624,2]
[378555759,1754913040582,-829.69,0.00016624,2]
[378555761,1754913040592,-515.07,0.00016624,2]
[378555763,1754913040601,-425.7,0.00016624,2]
[378555765,1754913040612,-400.0,0.00016624,2]
[378555767,1754913040621,-659.98,0.00016624,2]
[378555769,1754913040631,-400.0,0.00016624,2]
[378555771,1754913040640,-400.0,0.00016624,2]
[378555773,1754913040650,-400.0,0.00016624,2]
[378555775,1754913040659,-400.0,0.00016624,2]
[378555777,1754913040668,-400.0,0.00016624,2]
[378555779,1754913040677,-400.0,0.00016624,2]
[378555781,1754913040687,-400.0,0.00016624,2]
[378555784,1754913040697,-771.45,0.00016624,2]
[378555786,1754913040706,-400.0,0.00016624,2]
[378555788,1754913040715,-506.28,0.00016624,2]
[378555790,1754913040724,-400.0,0.00016624,2]
[378555792,1754913040734,-743.21,0.00016624,2]
[378555794,1754913040743,-942.45,0.00016624,2]
[378555796,1754913040753,-540.15,0.00016624,2]
[378555798,1754913040763,-401.35080201,0.00016624,2]
[378555800,1754913040772,-400.0,0.00016624,2]
[378555802,1754913040783,-400.0,0.00016624,2]
[378555804,1754913040793,-400.0,0.00016624,2]
[378555806,1754913040803,-400.0,0.00016624,2]
[378555808,1754913040816,-400.0,0.00016624,2]
[378555810,1754913040826,-523.63,0.00016624,2]
[378555812,1754913040836,-400.0,0.00016624,2]
[378555814,1754913040845,-400.0,0.00016624,2]
[378555816,1754913040854,-408.21,0.00016624,2]